[Event "Titled Tuesday Blitz June 27 Late 2023"]
[White "Shapiro, Daniel"]
[Black "Deng, Henry"]
[WhiteFideId "2001780"]
[BlackFideId "30965454"]
[WhiteElo "2328"]
[BlackElo "2505"]
[Result "1-0"]
[Round "4"]
[TimeControl "180+2"]
[Date "2023.06.27"]
[WhiteClock "0:00:41"]
[BlackClock "0:00:53"]
[Board "131"]

1. d4 {[%clk 0:03:00]}  Nf6 {[%clk 0:02:59]} 2. c4 {[%clk 0:03:00]}  d6 {[%clk 0:02:59]} 3. Nc3 {[%clk 0:02:59]}  e5 {[%clk 0:02:58]} 4. Nf3 {[%clk 0:02:58]}  Nbd7 {[%clk 0:02:58]} 5. e4 {[%clk 0:02:57]}  Be7 {[%clk 0:02:57]} 6. Be2 {[%clk 0:02:55]}  O-O {[%clk 0:02:57]} 7. O-O {[%clk 0:02:55]}  c6 {[%clk 0:02:54]} 8. Rb1 {[%clk 0:02:53]}  Re8 {[%clk 0:02:48]} 9. Be3 {[%clk 0:02:48]}  a5 {[%clk 0:02:48]} 10. h3 {[%clk 0:02:46]}  Bf8 {[%clk 0:02:47]} 11. Qc2 {[%clk 0:02:41]}  b6 {[%clk 0:02:40]} 12. a3 {[%clk 0:02:38]}  exd4 {[%clk 0:02:33]} 13. Nxd4 {[%clk 0:02:37]}  Qc7 {[%clk 0:02:34]} 14. f4 {[%clk 0:02:33]}  a4 {[%clk 0:02:30]} 15. Bf3 {[%clk 0:02:32]}  Bb7 {[%clk 0:02:28]} 16. g4 {[%clk 0:02:28]}  Nc5 {[%clk 0:02:27]} 17. g5 {[%clk 0:02:22]}  Nfd7 {[%clk 0:02:27]} 18. Rbd1 {[%clk 0:02:10]}  Ba6 {[%clk 0:01:57]} 19. e5 {[%clk 0:01:43]}  Bxc4 {[%clk 0:01:51]} 20. Rf2 {[%clk 0:01:43]}  d5 {[%clk 0:01:50]} 21. h4 {[%clk 0:01:19]}  Nb3 {[%clk 0:01:45]} 22. Nf5 {[%clk 0:01:09]}  Nbc5 {[%clk 0:01:25]} 23. Nd4 {[%clk 0:01:04]}  b5 {[%clk 0:01:08]} 24. h5 {[%clk 0:01:00]}  g6 {[%clk 0:01:06]} 25. hxg6 {[%clk 0:00:55]}  hxg6 {[%clk 0:01:06]} 26. Rh2 {[%clk 0:00:55]}  Nb3 {[%clk 0:01:05]} 27. Qf2 {[%clk 0:00:54]}  Nxd4 {[%clk 0:01:05]} 28. Bxd4 {[%clk 0:00:54]}  Bg7 {[%clk 0:01:05]} 29. Qh4 {[%clk 0:00:54]}  Nf8 {[%clk 0:00:58]} 30. e6 {[%clk 0:00:43]}  Nxe6 {[%clk 0:00:55]} 31. Qh8+ {[%clk 0:00:42]}  Bxh8 {[%clk 0:00:53]} 32. Rxh8# {[%clk 0:00:41]} 1-0


[Site "https://www.chess.com"]

[Event "Titled Tuesday Blitz June 27 Late 2023"]
[White "Toncheva, Nadya"]
[Black "Fajdetic, Hrvoje"]
[WhiteFideId "2924056"]
[BlackFideId "14501945"]
[WhiteElo "2503"]
[BlackElo "2320"]
[Result "0-1"]
[Round "4"]
[TimeControl "180+2"]
[Date "2023.06.27"]
[WhiteClock "0:00:20"]
[BlackClock "0:00:25"]
[Board "132"]

1. d4 {[%clk 0:03:00]}  e6 {[%clk 0:02:58]} 2. e4 {[%clk 0:02:53]}  d5 {[%clk 0:02:56]} 3. Nd2 {[%clk 0:02:53]}  dxe4 {[%clk 0:02:55]} 4. Nxe4 {[%clk 0:02:53]}  Nd7 {[%clk 0:02:55]} 5. Nf3 {[%clk 0:02:53]}  Ngf6 {[%clk 0:02:56]} 6. Bd3 {[%clk 0:02:51]}  Nxe4 {[%clk 0:02:56]} 7. Bxe4 {[%clk 0:02:52]}  Nf6 {[%clk 0:02:56]} 8. Bd3 {[%clk 0:02:52]}  c5 {[%clk 0:02:55]} 9. c3 {[%clk 0:02:51]}  cxd4 {[%clk 0:02:54]} 10. Nxd4 {[%clk 0:02:50]}  Bc5 {[%clk 0:02:54]} 11. Be3 {[%clk 0:02:50]}  Bd6 {[%clk 0:02:49]} 12. O-O {[%clk 0:02:39]}  a6 {[%clk 0:02:42]} 13. Re1 {[%clk 0:02:35]}  Qc7 {[%clk 0:02:39]} 14. h3 {[%clk 0:02:34]}  Bd7 {[%clk 0:02:32]} 15. a4 {[%clk 0:02:15]}  h6 {[%clk 0:02:20]} 16. a5 {[%clk 0:02:13]}  O-O {[%clk 0:02:19]} 17. Qf3 {[%clk 0:02:06]}  Bc6 {[%clk 0:02:04]} 18. Nxc6 {[%clk 0:02:05]}  Qxc6 {[%clk 0:02:04]} 19. Qxc6 {[%clk 0:02:04]}  bxc6 {[%clk 0:02:05]} 20. Red1 {[%clk 0:01:50]}  Nd5 {[%clk 0:01:59]} 21. Bb6 {[%clk 0:01:30]}  Be5 {[%clk 0:01:37]} 22. Bf1 {[%clk 0:01:27]}  Rfb8 {[%clk 0:01:31]} 23. g3 {[%clk 0:00:51]}  Nxb6 {[%clk 0:01:27]} 24. axb6 {[%clk 0:00:52]}  Rxb6 {[%clk 0:01:26]} 25. Rd2 {[%clk 0:00:53]}  Rab8 {[%clk 0:01:23]} 26. Rxa6 {[%clk 0:00:49]}  Rxb2 {[%clk 0:01:19]} 27. Rxb2 {[%clk 0:00:48]}  Rxb2 {[%clk 0:01:18]} 28. Rxc6 {[%clk 0:00:48]}  g6 {[%clk 0:01:11]} 29. Bd3 {[%clk 0:00:44]}  Rd2 {[%clk 0:01:08]} 30. Be4 {[%clk 0:00:38]}  Rd1+ {[%clk 0:00:59]} 31. Kg2 {[%clk 0:00:38]}  Rc1 {[%clk 0:01:00]} 32. c4 {[%clk 0:00:37]}  Bd4 {[%clk 0:00:58]} 33. Rc8+ {[%clk 0:00:36]}  Kg7 {[%clk 0:00:57]} 34. Rc7 {[%clk 0:00:31]}  Kf8 {[%clk 0:00:53]} 35. h4 {[%clk 0:00:24]}  Be5 {[%clk 0:00:26]} 36. f4 {[%clk 0:00:20]}  Bxc7 {[%clk 0:00:25]} 0-1


[Site "https://www.chess.com"]

[Event "Titled Tuesday Blitz June 27 Late 2023"]
[White "ArchibaldCerveza29"]
[Black "Gerbelli Neto, Eduardo"]
[BlackFideId "2103281"]
[WhiteElo "2500"]
[BlackElo "2317"]
[Result "1-0"]
[Round "4"]
[TimeControl "180+2"]
[Date "2023.06.27"]
[WhiteClock "0:01:30"]
[BlackClock "0:00:08"]
[Board "134"]

1. e4 {[%clk 0:02:59]}  e5 {[%clk 0:02:59]} 2. Nf3 {[%clk 0:02:56]}  Nc6 {[%clk 0:02:59]} 3. Bc4 {[%clk 0:02:55]}  Nf6 {[%clk 0:02:58]} 4. O-O {[%clk 0:02:56]}  Nxe4 {[%clk 0:02:57]} 5. Nc3 {[%clk 0:02:56]}  Nxc3 {[%clk 0:02:55]} 6. dxc3 {[%clk 0:02:57]}  d6 {[%clk 0:02:38]} 7. Ng5 {[%clk 0:02:57]}  Be6 {[%clk 0:02:18]} 8. Nxe6 {[%clk 0:02:56]}  fxe6 {[%clk 0:02:19]} 9. Bxe6 {[%clk 0:02:57]}  Qf6 {[%clk 0:02:17]} 10. Qg4 {[%clk 0:02:52]}  h5 {[%clk 0:02:13]} 11. Qh3 {[%clk 0:02:52]}  g5 {[%clk 0:02:07]} 12. Bd7+ {[%clk 0:02:44]}  Kd8 {[%clk 0:02:01]} 13. Bxc6 {[%clk 0:02:26]}  bxc6 {[%clk 0:02:01]} 14. Be3 {[%clk 0:02:22]}  g4 {[%clk 0:01:50]} 15. Qg3 {[%clk 0:02:22]}  Rg8 {[%clk 0:01:27]} 16. f4 {[%clk 0:02:14]}  h4 {[%clk 0:01:23]} 17. Qe1 {[%clk 0:02:10]}  e4 {[%clk 0:01:08]} 18. Bd4 {[%clk 0:02:06]}  Qf5 {[%clk 0:01:08]} 19. Qxh4+ {[%clk 0:02:01]}  Be7 {[%clk 0:01:07]} 20. Qf2 {[%clk 0:01:56]}  Kd7 {[%clk 0:00:36]} 21. Rad1 {[%clk 0:01:54]}  a5 {[%clk 0:00:30]} 22. g3 {[%clk 0:01:53]}  Rab8 {[%clk 0:00:27]} 23. b3 {[%clk 0:01:49]}  Rb5 {[%clk 0:00:19]} 24. c4 {[%clk 0:01:47]}  Rbb8 {[%clk 0:00:17]} 25. c5 {[%clk 0:01:48]}  d5 {[%clk 0:00:17]} 26. c4 {[%clk 0:01:48]}  Ke6 {[%clk 0:00:16]} 27. cxd5+ {[%clk 0:01:47]}  cxd5 {[%clk 0:00:17]} 28. Bc3 {[%clk 0:01:47]}  a4 {[%clk 0:00:15]} 29. b4 {[%clk 0:01:47]}  c6 {[%clk 0:00:15]} 30. a3 {[%clk 0:01:47]}  Rg6 {[%clk 0:00:14]} 31. Rfe1 {[%clk 0:01:37]}  Rh6 {[%clk 0:00:14]} 32. Rb1 {[%clk 0:01:34]}  Rh3 {[%clk 0:00:13]} 33. Be5 {[%clk 0:01:32]}  Bf6 {[%clk 0:00:08]} 34. Bxb8 {[%clk 0:01:30]} 1-0


[Site "https://www.chess.com"]

[Event "Titled Tuesday Blitz June 27 Late 2023"]
[White "Garmendiarov"]
[Black "Vovk, Orest"]
[BlackFideId "14113490"]
[WhiteElo "2315"]
[BlackElo "2498"]
[Result "0-1"]
[Round "4"]
[TimeControl "180+2"]
[Date "2023.06.27"]
[WhiteClock "0:00:03"]
[BlackClock "0:00:22"]
[Board "135"]

1. d4 {[%clk 0:03:00]}  h6 {[%clk 0:02:56]} 2. e4 {[%clk 0:03:00]}  g5 {[%clk 0:02:56]} 3. Nc3 {[%clk 0:03:00]}  Bg7 {[%clk 0:02:57]} 4. Bc4 {[%clk 0:02:59]}  c5 {[%clk 0:02:56]} 5. dxc5 {[%clk 0:02:55]}  Bxc3+ {[%clk 0:02:55]} 6. bxc3 {[%clk 0:02:55]}  Qa5 {[%clk 0:02:54]} 7. Qd4 {[%clk 0:02:08]}  Nf6 {[%clk 0:02:48]} 8. Ne2 {[%clk 0:01:58]}  Nc6 {[%clk 0:02:45]} 9. Qe3 {[%clk 0:01:58]}  Ng4 {[%clk 0:02:38]} 10. Qg3 {[%clk 0:01:44]}  Nge5 {[%clk 0:02:36]} 11. Bb3 {[%clk 0:01:39]}  Qxc5 {[%clk 0:02:36]} 12. Be3 {[%clk 0:01:34]}  Qa5 {[%clk 0:02:36]} 13. O-O {[%clk 0:01:30]}  d6 {[%clk 0:02:36]} 14. f4 {[%clk 0:01:25]}  gxf4 {[%clk 0:02:17]} 15. Rxf4 {[%clk 0:01:07]}  Be6 {[%clk 0:02:13]} 16. Bxe6 {[%clk 0:00:54]}  fxe6 {[%clk 0:02:13]} 17. Qh3 {[%clk 0:00:54]}  O-O-O {[%clk 0:01:58]} 18. Qxe6+ {[%clk 0:00:53]}  Kb8 {[%clk 0:01:59]} 19. Rb1 {[%clk 0:00:40]}  Qa4 {[%clk 0:01:43]} 20. Qb3 {[%clk 0:00:30]}  Qxb3 {[%clk 0:01:37]} 21. axb3 {[%clk 0:00:29]}  h5 {[%clk 0:01:28]} 22. Ra1 {[%clk 0:00:27]}  Ng4 {[%clk 0:01:24]} 23. Bd2 {[%clk 0:00:20]}  e5 {[%clk 0:01:21]} 24. Rf7 {[%clk 0:00:18]}  d5 {[%clk 0:01:11]} 25. exd5 {[%clk 0:00:16]}  Rxd5 {[%clk 0:01:11]} 26. Be1 {[%clk 0:00:14]}  Ne3 {[%clk 0:01:03]} 27. Bf2 {[%clk 0:00:14]}  Nxc2 {[%clk 0:00:59]} 28. Rc1 {[%clk 0:00:11]}  Rd2 {[%clk 0:00:59]} 29. Kf1 {[%clk 0:00:09]}  e4 {[%clk 0:00:51]} 30. Bc5 {[%clk 0:00:06]}  e3 {[%clk 0:00:41]} 31. Ng3 {[%clk 0:00:04]}  b6 {[%clk 0:00:33]} 32. Bb4 {[%clk 0:00:03]}  N6xb4 {[%clk 0:00:25]} 33. cxb4 {[%clk 0:00:04]}  Rhd8 {[%clk 0:00:24]} 34. Ne2 {[%clk 0:00:03]}  Rd1+ {[%clk 0:00:22]} 35. Rxd1 {[%clk 0:00:03]}  Rxd1# {[%clk 0:00:22]} 0-1


[Site "https://www.chess.com"]

[Event "Titled Tuesday Blitz June 27 Late 2023"]
[White "Perez Torres, Nabi Isaias"]
[Black "Mathieu, Phileas"]
[WhiteFideId "5120373"]
[BlackFideId "36048410"]
[WhiteElo "2314"]
[BlackElo "2498"]
[Result "1-0"]
[Round "4"]
[TimeControl "180+2"]
[Date "2023.06.27"]
[WhiteClock "0:00:04"]
[BlackClock "0:00:00"]
[Board "136"]

1. d4 {[%clk 0:03:00]}  Nf6 {[%clk 0:02:59]} 2. c4 {[%clk 0:03:01]}  g6 {[%clk 0:02:59]} 3. Nc3 {[%clk 0:03:01]}  Bg7 {[%clk 0:02:59]} 4. e4 {[%clk 0:02:58]}  d6 {[%clk 0:03:00]} 5. Be2 {[%clk 0:02:58]}  Na6 {[%clk 0:02:52]} 6. Nf3 {[%clk 0:02:58]}  O-O {[%clk 0:02:51]} 7. O-O {[%clk 0:02:58]}  e5 {[%clk 0:02:51]} 8. d5 {[%clk 0:02:58]}  Nc5 {[%clk 0:02:50]} 9. Qc2 {[%clk 0:02:54]}  a5 {[%clk 0:02:50]} 10. Ne1 {[%clk 0:02:55]}  Ne8 {[%clk 0:02:37]} 11. Nd3 {[%clk 0:02:35]}  b6 {[%clk 0:02:37]} 12. Be3 {[%clk 0:02:21]}  f5 {[%clk 0:02:27]} 13. f3 {[%clk 0:02:21]}  f4 {[%clk 0:02:09]} 14. Bf2 {[%clk 0:02:21]}  g5 {[%clk 0:02:09]} 15. a3 {[%clk 0:02:02]}  a4 {[%clk 0:01:58]} 16. Bxc5 {[%clk 0:02:01]}  bxc5 {[%clk 0:01:59]} 17. Nxa4 {[%clk 0:02:01]}  Nf6 {[%clk 0:01:51]} 18. b4 {[%clk 0:02:01]}  cxb4 {[%clk 0:01:47]} 19. axb4 {[%clk 0:02:02]}  g4 {[%clk 0:01:45]} 20. c5 {[%clk 0:01:47]}  g3 {[%clk 0:01:35]} 21. h3 {[%clk 0:01:47]}  Ne8 {[%clk 0:01:29]} 22. Rfc1 {[%clk 0:01:45]}  Rf6 {[%clk 0:00:56]} 23. Bf1 {[%clk 0:01:32]}  Rh6 {[%clk 0:00:54]} 24. cxd6 {[%clk 0:01:11]}  cxd6 {[%clk 0:00:48]} 25. Qc6 {[%clk 0:01:11]}  Rb8 {[%clk 0:00:44]} 26. Qc2 {[%clk 0:00:23]}  Bd7 {[%clk 0:00:31]} 27. Nac5 {[%clk 0:00:23]}  dxc5 {[%clk 0:00:26]} 28. bxc5 {[%clk 0:00:24]}  Bxh3 {[%clk 0:00:08]} 29. gxh3 {[%clk 0:00:23]}  g2 {[%clk 0:00:09]} 30. Bxg2 {[%clk 0:00:23]}  Qh4 {[%clk 0:00:05]} 31. Qf2 {[%clk 0:00:20]}  Qh5 {[%clk 0:00:05]} 32. c6 {[%clk 0:00:19]}  Rc8 {[%clk 0:00:03]} 33. Nc5 {[%clk 0:00:17]}  Nd6 {[%clk 0:00:03]} 34. Ne6 {[%clk 0:00:17]}  Rg6 {[%clk 0:00:03]} 35. Kf1 {[%clk 0:00:15]}  Bf6 {[%clk 0:00:04]} 36. Ra7 {[%clk 0:00:13]}  Bh4 {[%clk 0:00:04]} 37. Qb2 {[%clk 0:00:12]}  Bg3 {[%clk 0:00:04]} 38. Rca1 {[%clk 0:00:10]}  Nxe4 {[%clk 0:00:03]} 39. c7 {[%clk 0:00:07]}  Nd6 {[%clk 0:00:02]} 40. Qb8 {[%clk 0:00:06]}  e4 {[%clk 0:00:02]} 41. Qxc8+ {[%clk 0:00:06]}  Nxc8 {[%clk 0:00:02]} 42. Ra8 {[%clk 0:00:06]}  exf3 {[%clk 0:00:03]} 43. Rxc8+ {[%clk 0:00:07]}  Kf7 {[%clk 0:00:03]} 44. Rf8+ {[%clk 0:00:07]}  Ke7 {[%clk 0:00:04]} 45. c8=Q {[%clk 0:00:07]}  fxg2+ {[%clk 0:00:05]} 46. Kg1 {[%clk 0:00:06]}  Bf2+ {[%clk 0:00:04]} 47. Kxf2 {[%clk 0:00:06]}  g1=Q+ {[%clk 0:00:04]} 48. Rxg1 {[%clk 0:00:05]}  Qh4+ {[%clk 0:00:04]} 49. Ke2 {[%clk 0:00:05]}  Qh5+ {[%clk 0:00:03]} 50. Kd3 {[%clk 0:00:05]}  Qxd5+ {[%clk 0:00:03]} 51. Kc2 {[%clk 0:00:04]}  Qe4+ {[%clk 0:00:02]} 52. Kb3 {[%clk 0:00:04]}  Qd3+ {[%clk 0:00:02]} 53. Kb4 {[%clk 0:00:04]}  Rxe6 {[%clk 0:00:01]} 54. Qc5+ {[%clk 0:00:04]}  Rd6 {[%clk 0:00:01]} 55. Rg7+ {[%clk 0:00:04]}  Ke6 {[%clk 0:00:00]} 56. Re8+ {[%clk 0:00:04]} 1-0


[Site "https://www.chess.com"]

[Event "Titled Tuesday Blitz June 27 Late 2023"]
[White "Flynn, Jacob"]
[Black "Rakitic2010"]
[WhiteFideId "2509393"]
[WhiteElo "2477"]
[BlackElo "2262"]
[Result "0-1"]
[Round "4"]
[TimeControl "180+2"]
[Date "2023.06.27"]
[WhiteClock "0:00:07"]
[BlackClock "0:00:18"]
[Board "142"]

1. Nf3 {[%clk 0:03:00]}  Nf6 {[%clk 0:02:59]} 2. g3 {[%clk 0:03:01]}  g6 {[%clk 0:02:58]} 3. Bg2 {[%clk 0:03:02]}  Bg7 {[%clk 0:02:59]} 4. O-O {[%clk 0:03:03]}  O-O {[%clk 0:02:59]} 5. d4 {[%clk 0:03:04]}  c5 {[%clk 0:02:59]} 6. c4 {[%clk 0:03:05]}  cxd4 {[%clk 0:02:56]} 7. Nxd4 {[%clk 0:03:06]}  Nc6 {[%clk 0:02:56]} 8. Nc3 {[%clk 0:03:05]}  Qb6 {[%clk 0:02:47]} 9. Nb3 {[%clk 0:02:52]}  d6 {[%clk 0:02:44]} 10. Be3 {[%clk 0:02:49]}  Qd8 {[%clk 0:02:41]} 11. Nd4 {[%clk 0:02:48]}  Bd7 {[%clk 0:02:39]} 12. h3 {[%clk 0:02:44]}  Rc8 {[%clk 0:02:38]} 13. Rc1 {[%clk 0:02:44]}  a6 {[%clk 0:02:36]} 14. b3 {[%clk 0:02:43]}  Nxd4 {[%clk 0:02:34]} 15. Bxd4 {[%clk 0:02:44]}  Bc6 {[%clk 0:02:35]} 16. e4 {[%clk 0:02:43]}  Nd7 {[%clk 0:02:33]} 17. Be3 {[%clk 0:02:28]}  Qa5 {[%clk 0:02:29]} 18. Qd2 {[%clk 0:02:26]}  Rfe8 {[%clk 0:01:59]} 19. Nd5 {[%clk 0:02:16]}  Qxd2 {[%clk 0:01:57]} 20. Bxd2 {[%clk 0:02:17]}  Bxd5 {[%clk 0:01:56]} 21. cxd5 {[%clk 0:02:16]}  Nc5 {[%clk 0:01:48]} 22. Be3 {[%clk 0:02:06]}  Nd3 {[%clk 0:01:46]} 23. Rcd1 {[%clk 0:02:07]}  Nb4 {[%clk 0:01:38]} 24. Rd2 {[%clk 0:02:06]}  Nc2 {[%clk 0:01:21]} 25. Bb6 {[%clk 0:02:01]}  Rc3 {[%clk 0:01:12]} 26. Rfd1 {[%clk 0:01:40]}  Rec8 {[%clk 0:01:10]} 27. Bf1 {[%clk 0:01:39]}  Na3 {[%clk 0:00:59]} 28. Ba5 {[%clk 0:01:34]}  Rc2 {[%clk 0:00:57]} 29. Bb4 {[%clk 0:01:33]}  Rxd2 {[%clk 0:00:46]} 30. Rxd2 {[%clk 0:01:34]}  Nb1 {[%clk 0:00:39]} 31. Re2 {[%clk 0:01:23]}  Rc1 {[%clk 0:00:37]} 32. Kg2 {[%clk 0:01:12]}  Bc3 {[%clk 0:00:34]} 33. Bxc3 {[%clk 0:01:01]}  Nxc3 {[%clk 0:00:35]} 34. Re3 {[%clk 0:00:53]}  Nxa2 {[%clk 0:00:34]} 35. e5 {[%clk 0:00:54]}  Kf8 {[%clk 0:00:30]} 36. h4 {[%clk 0:00:51]}  h5 {[%clk 0:00:29]} 37. exd6 {[%clk 0:00:51]}  exd6 {[%clk 0:00:30]} 38. Bc4 {[%clk 0:00:50]}  b5 {[%clk 0:00:28]} 39. Bd3 {[%clk 0:00:50]}  Rc3 {[%clk 0:00:27]} 40. Rf3 {[%clk 0:00:50]}  Nc1 {[%clk 0:00:24]} 41. Bb1 {[%clk 0:00:33]}  Rxf3 {[%clk 0:00:23]} 42. Kxf3 {[%clk 0:00:34]}  Nxb3 {[%clk 0:00:23]} 43. Ke3 {[%clk 0:00:33]}  Ke7 {[%clk 0:00:23]} 44. Kd3 {[%clk 0:00:32]}  Kf6 {[%clk 0:00:20]} 45. Kc3 {[%clk 0:00:33]}  Nc5 {[%clk 0:00:19]} 46. Kd4 {[%clk 0:00:33]}  a5 {[%clk 0:00:19]} 47. f4 {[%clk 0:00:33]}  Ke7 {[%clk 0:00:18]} 48. Bc2 {[%clk 0:00:33]}  f5 {[%clk 0:00:19]} 49. Kc3 {[%clk 0:00:32]}  Kd7 {[%clk 0:00:19]} 50. Kd4 {[%clk 0:00:33]}  Kc7 {[%clk 0:00:20]} 51. Kc3 {[%clk 0:00:33]}  Ne4+ {[%clk 0:00:20]} 52. Kd4 {[%clk 0:00:32]}  Nxg3 {[%clk 0:00:20]} 53. Bd3 {[%clk 0:00:32]}  Ne4 {[%clk 0:00:20]} 54. Bxb5 {[%clk 0:00:32]}  Nc5 {[%clk 0:00:18]} 55. Kc4 {[%clk 0:00:29]}  Kd8 {[%clk 0:00:18]} 56. Bc6 {[%clk 0:00:27]}  Ke7 {[%clk 0:00:18]} 57. Kb5 {[%clk 0:00:26]}  a4 {[%clk 0:00:19]} 58. Kb4 {[%clk 0:00:27]}  Nd3+ {[%clk 0:00:19]} 59. Kxa4 {[%clk 0:00:25]}  Nxf4 {[%clk 0:00:20]} 60. Kb4 {[%clk 0:00:23]}  Ng2 {[%clk 0:00:20]} 61. Kc4 {[%clk 0:00:23]}  Nxh4 {[%clk 0:00:21]} 62. Kd4 {[%clk 0:00:24]}  g5 {[%clk 0:00:22]} 63. Bb7 {[%clk 0:00:23]}  Kf6 {[%clk 0:00:22]} 64. Bc8 {[%clk 0:00:23]}  g4 {[%clk 0:00:22]} 65. Ke3 {[%clk 0:00:22]}  Ng6 {[%clk 0:00:23]} 66. Be6 {[%clk 0:00:22]}  h4 {[%clk 0:00:24]} 67. Kf2 {[%clk 0:00:21]}  Ne5 {[%clk 0:00:22]} 68. Kg2 {[%clk 0:00:21]}  Kg5 {[%clk 0:00:23]} 69. Kf2 {[%clk 0:00:21]}  f4 {[%clk 0:00:23]} 70. Kg2 {[%clk 0:00:21]}  h3+ {[%clk 0:00:24]} 71. Kh2 {[%clk 0:00:21]}  Nf3+ {[%clk 0:00:24]} 72. Kh1 {[%clk 0:00:21]}  Kh4 {[%clk 0:00:24]} 73. Bxg4 {[%clk 0:00:21]}  Ne5 {[%clk 0:00:22]} 74. Be2 {[%clk 0:00:18]}  Kg3 {[%clk 0:00:22]} 75. Kg1 {[%clk 0:00:17]}  f3 {[%clk 0:00:21]} 76. Bf1 {[%clk 0:00:16]}  Ng4 {[%clk 0:00:20]} 77. Bg2 {[%clk 0:00:10]}  h2+ {[%clk 0:00:18]} 78. Kf1 {[%clk 0:00:08]}  Ne3+ {[%clk 0:00:17]} 79. Ke1 {[%clk 0:00:07]}  Nxg2+ {[%clk 0:00:18]} 80. Kd2 {[%clk 0:00:07]}  h1=Q {[%clk 0:00:18]} 0-1


[Site "https://www.chess.com"]

[Event "Titled Tuesday Blitz June 27 Late 2023"]
[White "Ng, Matthew K"]
[Black "Dobre, Claudiu-Cristian"]
[WhiteFideId "2094371"]
[BlackFideId "1211854"]
[WhiteElo "2235"]
[BlackElo "2457"]
[Result "0-1"]
[Round "4"]
[TimeControl "180+2"]
[Date "2023.06.27"]
[WhiteClock "0:00:00"]
[BlackClock "0:00:16"]
[Board "146"]

1. e4 {[%clk 0:02:54]}  Nc6 {[%clk 0:02:59]} 2. Nf3 {[%clk 0:02:54]}  d6 {[%clk 0:02:59]} 3. d4 {[%clk 0:02:53]}  Nf6 {[%clk 0:02:58]} 4. Nc3 {[%clk 0:02:51]}  Bg4 {[%clk 0:02:58]} 5. Be2 {[%clk 0:02:50]}  e5 {[%clk 0:02:56]} 6. d5 {[%clk 0:02:48]}  Ne7 {[%clk 0:02:56]} 7. h3 {[%clk 0:02:47]}  Bd7 {[%clk 0:02:56]} 8. O-O {[%clk 0:02:45]}  g6 {[%clk 0:02:55]} 9. Bg5 {[%clk 0:02:44]}  Bg7 {[%clk 0:02:54]} 10. Qd2 {[%clk 0:02:38]}  O-O {[%clk 0:02:54]} 11. Bh6 {[%clk 0:02:35]}  Nh5 {[%clk 0:02:54]} 12. Bxg7 {[%clk 0:02:29]}  Kxg7 {[%clk 0:02:54]} 13. Ng5 {[%clk 0:02:23]}  Nf4 {[%clk 0:02:54]} 14. Kh2 {[%clk 0:02:14]}  Nexd5 {[%clk 0:01:58]} 15. Nxf7 {[%clk 0:01:46]}  Rxf7 {[%clk 0:01:45]} 16. Nxd5 {[%clk 0:01:42]}  Qh4 {[%clk 0:01:10]} 17. Nxf4 {[%clk 0:01:31]}  Qxf4+ {[%clk 0:01:09]} 18. Qxf4 {[%clk 0:01:25]}  exf4 {[%clk 0:01:09]} 19. Bf3 {[%clk 0:01:18]}  Kf6 {[%clk 0:01:07]} 20. c4 {[%clk 0:01:09]}  Ke5 {[%clk 0:01:05]} 21. Rad1 {[%clk 0:01:08]}  Be6 {[%clk 0:01:02]} 22. b3 {[%clk 0:01:02]}  h5 {[%clk 0:01:01]} 23. h4 {[%clk 0:01:00]}  a5 {[%clk 0:01:00]} 24. Rd2 {[%clk 0:00:52]}  a4 {[%clk 0:00:59]} 25. Re1 {[%clk 0:00:34]}  Rff8 {[%clk 0:00:58]} 26. g3 {[%clk 0:00:26]}  Ra6 {[%clk 0:00:28]} 27. Bd1 {[%clk 0:00:13]}  axb3 {[%clk 0:00:26]} 28. axb3 {[%clk 0:00:11]}  Ra1 {[%clk 0:00:25]} 29. Rde2 {[%clk 0:00:07]}  Bg4 {[%clk 0:00:22]} 30. Rd2 {[%clk 0:00:02]}  Rf7 {[%clk 0:00:16]} 31. Kg1 {[%clk 0:00:00]}  Bxd1 {[%clk 0:00:16]} 0-1


[Site "https://www.chess.com"]

[Event "Titled Tuesday Blitz June 27 Late 2023"]
[White "Mickiewicz, Piotr"]
[Black "Kornyukov, Alexey"]
[WhiteFideId "1114891"]
[BlackFideId "4150457"]
[WhiteElo "2449"]
[BlackElo "2228"]
[Result "0-1"]
[Round "4"]
[TimeControl "180+2"]
[Date "2023.06.27"]
[WhiteClock "0:00:05"]
[BlackClock "0:00:09"]
[Board "148"]

1. e4 {[%clk 0:01:33]}  c5 {[%clk 0:02:59]} 2. Nf3 {[%clk 0:01:32]}  Nc6 {[%clk 0:02:59]} 3. d3 {[%clk 0:01:33]}  Nf6 {[%clk 0:02:58]} 4. g3 {[%clk 0:01:34]}  d5 {[%clk 0:02:55]} 5. Bg2 {[%clk 0:01:35]}  dxe4 {[%clk 0:02:36]} 6. Ng5 {[%clk 0:01:33]}  exd3 {[%clk 0:02:15]} 7. Bxc6+ {[%clk 0:01:32]}  bxc6 {[%clk 0:02:14]} 8. Qxd3 {[%clk 0:01:33]}  Qxd3 {[%clk 0:02:10]} 9. cxd3 {[%clk 0:01:34]}  Bf5 {[%clk 0:02:08]} 10. Ke2 {[%clk 0:01:34]}  e5 {[%clk 0:01:57]} 11. f3 {[%clk 0:01:33]}  Nd5 {[%clk 0:01:49]} 12. a3 {[%clk 0:01:30]}  Bg6 {[%clk 0:01:42]} 13. Nd2 {[%clk 0:01:25]}  Rd8 {[%clk 0:01:37]} 14. Nge4 {[%clk 0:01:23]}  f5 {[%clk 0:01:33]} 15. Nf2 {[%clk 0:01:23]}  Be7 {[%clk 0:01:29]} 16. Nc4 {[%clk 0:01:23]}  Bf6 {[%clk 0:01:25]} 17. g4 {[%clk 0:01:18]}  Nf4+ {[%clk 0:01:16]} 18. Bxf4 {[%clk 0:01:17]}  exf4 {[%clk 0:01:17]} 19. gxf5 {[%clk 0:01:17]}  Bxf5 {[%clk 0:01:15]} 20. Ne4 {[%clk 0:01:18]}  O-O {[%clk 0:01:12]} 21. h4 {[%clk 0:01:14]}  Rfe8 {[%clk 0:01:03]} 22. h5 {[%clk 0:01:12]}  Kf7 {[%clk 0:00:56]} 23. Rac1 {[%clk 0:01:10]}  Bd4 {[%clk 0:00:44]} 24. Rh2 {[%clk 0:01:01]}  h6 {[%clk 0:00:42]} 25. Kf1 {[%clk 0:01:00]}  Kf8 {[%clk 0:00:39]} 26. Re2 {[%clk 0:00:43]}  Re7 {[%clk 0:00:37]} 27. Kg2 {[%clk 0:00:43]}  Rb8 {[%clk 0:00:33]} 28. Rce1 {[%clk 0:00:42]}  Rb3 {[%clk 0:00:30]} 29. Ncd6 {[%clk 0:00:33]}  Bd7 {[%clk 0:00:19]} 30. Nxc5 {[%clk 0:00:28]}  Rxe2+ {[%clk 0:00:16]} 31. Rxe2 {[%clk 0:00:29]}  Bxc5 {[%clk 0:00:16]} 32. Nc4 {[%clk 0:00:28]}  Bd4 {[%clk 0:00:15]} 33. Re4 {[%clk 0:00:27]}  Bxb2 {[%clk 0:00:14]} 34. Rxf4+ {[%clk 0:00:27]}  Kg8 {[%clk 0:00:14]} 35. Re4 {[%clk 0:00:27]}  Bf6 {[%clk 0:00:12]} 36. f4 {[%clk 0:00:24]}  Rxd3 {[%clk 0:00:11]} 37. Kf2 {[%clk 0:00:20]}  c5 {[%clk 0:00:12]} 38. Na5 {[%clk 0:00:09]}  Rxa3 {[%clk 0:00:10]} 39. Nc4 {[%clk 0:00:09]}  Rd3 {[%clk 0:00:10]} 40. Na5 {[%clk 0:00:08]}  Rd4 {[%clk 0:00:10]} 41. Re2 {[%clk 0:00:08]}  Rxf4+ {[%clk 0:00:10]} 42. Ke1 {[%clk 0:00:08]}  Rd4 {[%clk 0:00:11]} 43. Kf1 {[%clk 0:00:07]}  Bg4 {[%clk 0:00:11]} 44. Re8+ {[%clk 0:00:06]}  Kh7 {[%clk 0:00:11]} 45. Ra8 {[%clk 0:00:05]}  Bxh5 {[%clk 0:00:11]} 46. Nc6 {[%clk 0:00:06]}  Rd2 {[%clk 0:00:10]} 47. Nxa7 {[%clk 0:00:06]}  c4 {[%clk 0:00:09]} 48. Nc6 {[%clk 0:00:06]}  c3 {[%clk 0:00:10]} 49. Rc8 {[%clk 0:00:06]}  c2 {[%clk 0:00:10]} 50. Ne7 {[%clk 0:00:06]}  Rd1+ {[%clk 0:00:09]} 51. Kf2 {[%clk 0:00:06]}  c1=Q {[%clk 0:00:10]} 52. Rh8+ {[%clk 0:00:06]}  Kxh8 {[%clk 0:00:09]} 53. Ng6+ {[%clk 0:00:05]}  Bxg6 {[%clk 0:00:09]} 0-1


[Site "https://www.chess.com"]